bitfinex/quotes_SOLUSD_20251130
["timestamp","ask_amount","ask_price","bid_price","bid_amount"]
[1764515524091,10.44953116,137.94,137.91,2.68517413]
[1764515524313,10.44953116,137.94,137.92,0.66]
[1764515525510,3.2,137.94,137.92,0.66]
[1764515526606,3.87,137.94,137.92,0.66]
[1764515527118,3.2,137.94,137.92,0.66]
[1764515527792,3.87,137.94,137.92,0.66]
[1764515527988,2.87662213,137.93,137.9,7.91138864]
[1764515528217,16.308864,137.95,137.92,2.20662213]
[1764515528401,3.2,137.93,137.92,2.20662213]
[1764515529116,3.2,137.93,137.92,10.11720217]
[1764515538723,3.2,137.93,137.92,72.91720217]
[1764515540929,3.4,137.96,137.92,91.32797542]
[1764515541250,3.4,137.96,137.94,2.20662213]
[1764515541428,3.4,137.96,137.94,65.00662213]
[1764515541737,3.4,137.96,137.95,10.11562539]
[1764515543427,3.4,137.96,137.95,72.91562539]
[1764515543630,0.2,137.96,137.95,73.19994853]
[1764515544022,0.2,137.96,137.95,19.20989345]
[1764515544512,0.2,137.96,137.95,19.93479377]
[1764515546038,0.2,137.99,137.97,0.28432314]
[1764515546330,0.2,137.99,137.98,2.20662213]
[1764515546627,0.2,137.99,137.98,19.49980927]
[1764515546921,1e-08,137.99,137.98,28.30975419]
[1764515547125,1e-08,137.99,137.98,31.50975419]
[1764515548028,1e-08,137.99,137.98,38.75718135]
[1764515550438,0.2,138.02,138.01,2.49094527]
[1764515550645,0.2,138.02,138.01,2.20662213]
[1764515551626,0.2,138.02,138.01,10.15247387]
[1764515552635,0.2,138.02,138.01,9.45247387]
[1764515553412,0.2,138.02,138.01,10.15247387]
[1764515553609,0.2,138.02,138.01,72.25247387]
[1764515553610,0.9,138.02,138.01,72.25247387]
[1764515553809,0.9,138.02,138.01,70.04585174]
[1764515558819,0.9,138.02,138.0,70.04615923]
[1764515559130,0.2,138.02,138.01,2.20662213]
[1764515559641,0.2,138.02,138.01,9.45247387]
[1764515561537,0.2,138.02,138.01,7.24585174]
[1764515566042,0.2,138.02,138.0,7.94637681]
[1764515566920,0.9,138.02,138.0,7.94637681]
[1764515567117,0.9,138.02,138.0,7.24637681]
[1764515567924,0.2,138.02,138.0,7.24637681]
[1764515568119,0.7,138.01,138.0,7.24637681]
[1764515568339,19.21548613,138.01,137.96,7.24847781]
[1764515568525,2.20662213,137.98,137.96,7.24847781]
[1764515568719,2.20662213,137.97,137.96,7.24847781]
[1764515569121,2.90662213,137.97,137.96,7.24847781]
[1764515569418,2.90662213,137.97,137.95,7.24900326]
[1764515570448,0.7,137.97,137.95,7.24900326]
[1764515574351,0.7,137.97,137.95,70.04900326]
[1764515574523,2.90662213,137.97,137.95,70.04900326]
[1764515575237,0.7,137.96,137.95,70.04900326]
[1764515575546,0.7,137.96,137.93,0.7]
[1764515575547,2.90662213,137.96,137.94,7.24947915]
[1764515575723,2.20662213,137.95,137.9,23.53517583]
[1764515575923,3.2,137.94,137.91,7.96110579]
[1764515576247,3.9,137.94,137.91,7.96110579]
[1764515580339,3.2,137.94,137.91,72.25772792]
[1764515580530,3.2,137.95,137.93,7.25005437]
[1764515580922,3.2,137.95,137.93,7.96005437]
[1764515581127,3.9,137.95,137.93,7.25005437]
[1764515581755,0.7,137.95,137.93,7.25005437]
[1764515581948,3.2,137.95,137.93,7.96005437]
[1764515582148,3.9,137.95,137.93,7.96005437]
[1764515582737,3.2,137.95,137.93,7.96005437]
[1764515583759,4.14723027,137.96,137.93,7.96005437]
[1764515584049,3.9,137.95,137.93,7.96005437]
[1764515584632,3.9,137.95,137.93,7.25005437]
[1764515585054,0.7,137.94,137.93,7.25005437]
[1764515586053,3.2,137.95,137.92,7.25058004]
[1764515586266,3.9,137.95,137.92,7.96058004]
[1764515587830,0.7,137.94,137.92,7.96058004]
[1764515588230,0.7,137.94,137.92,7.25058004]
[1764515588849,3.44723027,137.93,137.89,18.13014963]
[1764515589052,3.44723027,137.92,137.89,18.84014963]
[1764515589230,3.2,137.91,137.9,7.25163161]
[1764515589431,3.2,137.91,137.9,7.96163161]
[1764515589739,3.2,137.92,137.9,7.96163161]
[1764515591555,3.9,137.92,137.9,7.96163161]
[1764515592052,0.7,137.91,137.89,7.25211569]
[1764515592355,0.7,137.91,137.89,70.05211569]
[1764515595460,4.14723027,137.91,137.88,62.8]
[1764515595632,0.7,137.9,137.88,62.8]
[1764515596663,0.7,137.9,137.88,70.05250865]
[1764515596857,0.7,137.91,137.88,70.76250865]
[1764515600340,0.7,137.91,137.88,70.05250865]
[1764515600561,4.14723027,137.91,137.88,70.05250865]
[1764515601163,4.14723027,137.91,137.88,70.76250865]
[1764515601461,3.44723027,137.91,137.88,70.76250865]
[1764515601664,0.7,137.9,137.88,70.76250865]
[1764515602661,3.44723027,137.91,137.88,70.76250865]
[1764515602858,4.14723027,137.91,137.88,70.76250865]
[1764515603064,0.7,137.9,137.88,70.76250865]
[1764515604541,4.14723027,137.91,137.88,70.76250865]
[1764515605265,0.7,137.9,137.88,70.76250865]
[1764515605761,0.7,137.9,137.88,70.05250865]
[1764515607968,4.14723027,137.9,137.88,62.8]
[1764515608358,4.10723027,137.9,137.88,62.8]
[1764515608559,0.66,137.89,137.88,62.8]
[1764515609273,0.66,137.89,137.87,7.25309733]
[1764515609458,3.2,137.88,137.87,7.25309733]
[1764515609771,3.2,137.88,137.87,7.97309733]
[1764515610169,3.2,137.88,137.86,70.05362664]
[1764515610359,3.2,137.88,137.86,70.77362664]
[1764515610555,3.86,137.88,137.86,70.05362664]
[1764515610764,3.86,137.88,137.86,70.77362664]
[1764515611568,3.86,137.88,137.86,62.8]
[1764515612169,3.86,137.88,137.86,70.05355806]
[1764515612555,0.66,137.87,137.86,70.05355806]
[1764515612752,0.66,137.87,137.86,7.25355806]
[1764515613454,4.10723027,137.87,137.83,63.52]
[1764515613654,4.10723027,137.87,137.84,0.72]
[1764515614067,4.10723027,137.87,137.84,7.9746555]
[1764515614264,0.66,137.87,137.84,7.9746555]
[1764515618666,0.66,137.87,137.84,7.2546555]
[1764515618866,0.66,137.87,137.84,62.8]
[1764515619776,3.44723027,137.85,137.81,0.82]
[1764515619969,3.2,137.84,137.81,0.82]
[1764515620159,3.86,137.84,137.81,11.52357689]
[1764515620780,3.86,137.84,137.82,0.72]
[1764515621363,3.2,137.84,137.82,0.72]
[1764515621773,3.2,137.84,137.82,4.16723027]
[1764515622081,3.2,137.84,137.82,11.42298039]
[1764515623866,3.2,137.84,137.83,0.72]
[1764515624885,3.2,137.84,137.82,66.96723027]
[1764515625987,3.2,137.84,137.83,7.97531451]
[1764515626183,3.2,137.84,137.83,7.25531451]
[1764515626988,0.66,137.85,137.83,7.25531451]
[1764515627182,3.2,137.84,137.83,7.25531451]
[1764515627789,0.66,137.85,137.83,7.25531451]
[1764515627992,3.2,137.84,137.83,7.25531451]
[1764515628590,3.2,137.84,137.83,7.97531451]
[1764515629191,3.2,137.84,137.83,7.25531451]
[1764515630198,3.2,137.84,137.83,7.97531451]
[1764515630707,3.2,137.84,137.83,11.42254478]
[1764515631386,3.2,137.84,137.83,7.97531451]
[1764515632199,0.66,137.86,137.83,7.97531451]
[1764515632374,3.2,137.85,137.83,7.97531451]
[1764515632693,3.2,137.85,137.84,7.97478816]
[1764515633809,16.308864,137.88,137.84,11.42201843]
[1764515633978,3.2,137.87,137.85,0.72]
[1764515634910,0.66,137.89,137.85,4.16723027]
[1764515635111,3.2,137.88,137.85,4.16723027]
[1764515635278,3.2,137.88,137.86,0.72]
[1764515635880,3.2,137.88,137.86,7.97329208]
[1764515636479,3.2,137.88,137.87,0.7]
[1764515638396,3.2,137.88,137.87,7.95320954]
[1764515639099,3.2,137.88,137.87,7.25320954]
[1764515639498,3.2,137.88,137.87,7.95320954]
[1764515640400,0.72,137.9,137.87,7.95320954]
[1764515640591,3.2,137.89,137.87,7.95320954]
[1764515641993,3.92,137.89,137.87,7.95320954]
[1764515644602,3.2,137.89,137.87,7.95320954]
[1764515645601,3.2,137.89,137.87,70.75320954]
[1764515646390,3.2,137.89,137.88,0.7]
[1764515648295,3.2,137.89,137.87,70.75320954]
[1764515648502,3.2,137.89,137.88,0.7]
[1764515648699,17.028864,137.92,137.88,0.7]
[1764515648898,7.97047523,137.93,137.88,2.90820982]
[1764515649099,3.2,137.91,137.88,2.90820982]
[1764515649401,3.2,137.91,137.89,0.7]
[1764515649807,3.2,137.91,137.9,7.25163161]
[1764515650218,3.2,137.91,137.9,7.95163161]
[1764515651704,6.12820982,137.91,137.85,16.308864]
[1764515651908,2.20820982,137.89,137.85,17.008864]
[1764515652108,2.20820982,137.89,137.86,7.25373567]
[1764515652299,2.92820982,137.89,137.86,7.95373567]
[1764515652716,0.72,137.89,137.86,7.95373567]
[1764515656217,2.92820982,137.89,137.86,7.95373567]
[1764515657201,0.72,137.89,137.86,7.95373567]
[1764515657531,0.72,137.89,137.86,70.75373567]
[1764515657695,0.72,137.9,137.87,0.7]
[1764515657896,2.92820982,137.9,137.87,0.7]
[1764515659316,2.92820982,137.9,137.88,7.25268349]
[1764515660921,0.72,137.9,137.88,7.25268349]
[1764515664120,2.92820982,137.9,137.88,7.25268349]
[1764515666616,2.20820982,137.9,137.88,7.25268349]
[1764515666815,0.67,137.89,137.88,7.25268349]
[1764515667421,2.87820982,137.89,137.87,7.25315677]
[1764515667804,0.67,137.88,137.87,7.25315677]
[1764515668712,0.67,137.89,137.87,7.25315677]
[1764515670711,0.67,137.89,137.86,70.76359053]
[1764515671105,2.87820982,137.89,137.86,70.76359053]
[1764515673432,0.67,137.89,137.86,70.76359053]
[1764515676948,13.32952401,137.91,137.87,0.71]
[1764515677134,7.92131419,137.91,137.87,0.71]
[1764515677336,3.87,137.9,137.88,7.25268349]
[1764515677742,3.87,137.9,137.88,7.96268349]
[1764515678162,3.2,137.9,137.88,7.96268349]
[1764515678323,0.67,137.93,137.89,0.71]
[1764515678649,3.2,137.92,137.89,0.71]
[1764515679354,3.87,137.92,137.89,0.71]
[1764515679526,3.87,137.92,137.9,7.25163161]
[1764515680227,6.07820982,137.92,137.9,7.25163161]
[1764515680426,0.67,137.92,137.9,7.25163161]
[1764515680647,3.2,137.91,137.9,0.71]
[1764515681638,3.2,137.91,137.9,7.96163161]
[1764515682442,2.87820982,137.93,137.9,7.96163161]
[1764515682742,3.2,137.92,137.9,7.96163161]
[1764515682942,3.87,137.92,137.9,7.96163161]
[1764515683143,2.20820982,137.93,137.9,7.96163161]
[1764515683338,23.5580932,137.95,137.9,25.38071065]
[1764515683654,3.2,137.94,137.91,0.71]
[1764515683818,2.20820982,137.93,137.9,7.96163161]
[1764515684021,2.20820982,137.92,137.9,7.96163161]
[1764515685322,0.67,137.93,137.9,7.96163161]
[1764515685624,2.87820982,137.93,137.9,7.25163161]
[1764515685831,2.87820982,137.93,137.91,0.71]
[1764515686038,3.2,137.92,137.91,0.71]
[1764515686643,3.2,137.92,137.91,7.96110579]
[1764515688133,3.2,137.92,137.91,26.08887027]
[1764515689145,3.2,137.92,137.91,7.25110579]
[1764515689844,3.2,137.92,137.91,7.96110579]
[1764515690843,3.2,137.92,137.91,7.25110579]
[1764515691227,3.2,137.92,137.91,0.71]
[1764515692333,3.2,137.92,137.91,7.96110579]
[1764515692725,3.2,137.92,137.91,0.71]
[1764515692942,3.87,137.92,137.9,7.25140952]
[1764515693249,3.2,137.92,137.9,70.76140952]
[1764515696146,3.2,137.92,137.9,70.05140952]
[1764515696335,3.2,137.92,137.91,0.66]
[1764515697145,16.308864,137.95,137.91,0.66]
[1764515697351,3.2,137.94,137.91,0.66]
[1764515698047,3.88,137.94,137.91,0.66]
[1764515699053,3.2,137.94,137.92,7.25058004]
[1764515699455,3.2,137.94,137.93,0.66]
[1764515700450,3.2,137.94,137.92,7.25058004]
[1764515700641,0.68,137.93,137.91,62.8]
[1764515700958,2.88820982,137.93,137.91,62.8]
[1764515701754,10.44996163,137.94,137.91,70.05106288]
[1764515701965,3.2,137.93,137.91,70.71106288]
[1764515702137,0.68,137.93,137.91,70.71106288]
[1764515702337,3.2,137.92,137.91,70.05106288]
[1764515703357,3.2,137.92,137.91,70.71106288]
[1764515707043,16.308864,137.95,137.91,92.28680604]
[1764515707367,3.2,137.94,137.92,0.66]
[1764515708060,3.2,137.94,137.93,7.25005437]
[1764515709255,3.88,137.94,137.92,7.25044571]
[1764515710074,3.2,137.94,137.92,7.91044571]
[1764515712172,16.988864,137.95,137.93,0.66]
[1764515712378,3.2,137.94,137.93,0.66]
[1764515712973,3.2,137.95,137.93,4.10797868]
[1764515713157,3.2,137.95,137.94,3.44797868]
[1764515713350,3.2,137.95,137.94,11.35750746]
[1764515713770,3.2,137.95,137.94,7.90952878]
[1764515716467,3.2,137.97,137.94,7.90952878]
[1764515716853,3.88,137.97,137.94,7.90952878]
[1764515717171,3.2,137.97,137.94,7.24952878]
[1764515717479,3.2,137.97,137.95,7.90872807]
[1764515718058,3.2,137.97,137.96,0.66]
[1764515719753,3.2,137.97,137.94,18.78382195]
[1764515719954,6.64797868,137.97,137.92,18.41005748]
[1764515720183,3.44797868,137.95,137.92,0.66]
[1764515720472,3.2,137.94,137.91,0.80216157]
[1764515720677,3.88,137.94,137.91,0.94432314]
[1764515721259,3.88,137.94,137.92,7.25045105]
[1764515721458,3.88,137.94,137.92,7.91045105]
[1764515721965,3.2,137.94,137.92,7.91045105]
[1764515724371,3.2,137.94,137.92,7.25045105]
[1764515724372,0.65,137.93,137.92,7.25045105]
[1764515726083,3.89,137.94,137.92,7.25045105]
[1764515726498,3.2,137.94,137.92,7.25045105]
[1764515726662,3.89,137.94,137.92,7.25045105]
[1764515727884,3.89,137.94,137.93,0.71]
[1764515727885,3.2,137.94,137.93,0.71]
[1764515728857,3.2,137.94,137.92,7.96045105]
[1764515729469,3.2,137.94,137.93,0.71]
[1764515729687,3.2,137.94,137.93,7.96005437]
[1764515732776,3.2,137.95,137.93,74.20803305]
[1764515732973,7.24607567,138.01,137.94,4.44230182]
[1764515733292,3.89,138.0,137.96,3.44797868]
[1764515733967,3.89,138.0,137.97,7.95777951]
[1764515737172,3.2,137.99,137.97,7.95777951]
[1764515737777,0.89,138.02,137.98,0.71]
[1764515738086,3.2,137.99,137.98,0.71]
[1764515738896,0.69,138.01,137.98,7.95742716]
[1764515739075,3.2,138.0,137.98,7.95742716]
[1764515742477,3.2,138.0,137.98,11.40540584]
[1764515743598,3.2,138.0,137.98,74.20540584]
[1764515744892,0.69,138.01,137.98,74.20540584]
[1764515745097,3.2,138.0,137.98,73.49540584]
[1764515745282,3.2,138.0,137.99,11.40488062]
[1764515749383,0.2,138.02,137.99,92.32213549]
[1764515749583,3.4,138.02,138.0,4.15797868]
[1764515749807,3.4,138.02,138.0,66.95797868]
[1764515750107,3.4,138.02,138.01,0.71]
[1764515750585,3.4,138.02,138.0,66.95797868]
[1764515751389,3.4,138.02,138.01,11.40383042]
[1764515752191,0.2,138.02,138.01,11.40383042]
[1764515755510,0.2,138.02,138.01,74.20383042]
[1764515757407,0.2,138.02,138.01,70.04585174]
[1764515757593,0.86,138.02,138.01,70.04585174]
[1764515759014,0.86,138.02,138.01,62.8]
[1764515759210,0.86,138.02,138.01,70.04585174]
[1764515759509,0.86,138.02,138.01,62.8]
[1764515761015,4.30797868,138.02,138.01,62.8]
[1764515761410,4.30797868,138.02,137.99,7.24668712]
[1764515761599,0.66,138.01,137.99,10.6946658]
[1764515761802,3.2,138.0,137.99,10.6946658]
[1764515764424,3.2,138.0,137.99,9.45066175]
[1764515764727,3.86,138.0,137.97,7.24767131]
[1764515764903,0.66,137.99,137.97,7.24767131]
[1764515767116,3.86,137.98,137.96,9.45221117]
[1764515767493,0.66,137.97,137.96,7.24823654]
[1764515767702,0.66,137.97,137.94,25.37335073]
[1764515767896,0.66,137.97,137.94,26.05335073]
[1764515769698,2.86397463,137.97,137.94,7.24952878]
[1764515769899,2.20397463,137.96,137.94,7.24952878]
[1764515770112,2.86397463,137.96,137.94,7.24952878]
[1764515770317,2.86397463,137.95,137.92,70.05048955]
[1764515770508,3.2,137.94,137.92,70.05048955]
[1764515770911,3.86,137.94,137.92,70.05048955]
[1764515772127,3.86,137.94,137.92,70.05054]
[1764515772306,2.86397463,137.93,137.91,7.250915]
[1764515772508,2.20397463,137.92,137.89,0.68]
[1764515772823,2.86397463,137.92,137.88,81.61130057]
[1764515773006,2.20397463,137.92,137.89,0.68]
[1764515773204,2.86397463,137.92,137.89,0.68]
[1764515773411,0.66,137.92,137.89,0.68]
[1764515774403,0.66,137.92,137.89,7.25212003]
[1764515774602,2.86397463,137.92,137.89,7.25212003]
[1764515774805,2.86397463,137.92,137.89,7.93212003]
[1764515776014,2.86397463,137.92,137.9,0.68]
[1764515776315,2.86397463,137.92,137.89,7.93212003]
[1764515776521,2.20397463,137.93,137.9,0.68]
[1764515776717,2.20397463,137.91,137.87,0.68]
[1764515776898,25.40313206,137.96,137.88,0.68]
[1764515776899,3.2,137.9,137.88,0.68]
[1764515777826,3.2,137.9,137.88,7.93234959]
[1764515781309,3.86,137.9,137.88,7.25234959]
[1764515782814,2.91397463,137.89,137.87,62.8]
[1764515783015,10.16647566,137.89,137.85,0.69]
[1764515783215,0.71,137.88,137.85,7.94422615]
[1764515788045,3.2,137.89,137.86,2.86397463]
[1764515788244,3.2,137.89,137.86,65.66397463]
[1764515788537,3.2,137.89,137.87,0.66]
[1764515788839,3.87,137.89,137.87,0.66]
[1764515789024,3.2,137.9,137.88,2.20397463]
[1764515789643,3.2,137.9,137.88,2.86397463]
[1764515790021,3.2,137.9,137.88,0.66]
[1764515790324,3.2,137.9,137.88,7.91255146]
[1764515791533,3.2,137.9,137.88,7.25255146]
[1764515791854,0.67,137.92,137.89,7.91215751]
[1764515792143,3.2,137.92,137.9,2.86397463]
[1764515792530,3.2,137.92,137.91,0.66]
[1764515793239,3.2,137.92,137.9,7.91113913]
[1764515793632,3.87,137.92,137.89,7.25204437]
[1764515793946,3.87,137.92,137.89,7.91204437]
[1764515795145,3.87,137.92,137.9,2.20397463]
[1764515795846,3.87,137.92,137.9,9.45520881]
[1764515797114,34.43069386,137.96,137.9,9.45520881]
[1764515797341,3.87,137.95,137.91,2.86397463]
[1764515797543,0.67,137.94,137.91,2.86397463]
[1764515798242,0.67,137.94,137.92,2.20397463]
[1764515799548,0.67,137.94,137.93,2.20397463]
[1764515802865,3.2,137.95,137.93,2.86397463]
[1764515803149,3.87,137.95,137.94,2.20397463]
[1764515806757,3.2,137.95,137.94,2.20397463]
[1764515806937,3.87,137.95,137.94,2.20397463]
[1764515807331,3.87,137.95,137.93,7.24963454]
[1764515810755,3.2,137.95,137.93,7.24963454]
[1764515810965,3.2,137.95,137.93,7.90963454]
[1764515811158,19.18283863,137.98,137.94,2.86397463]
[1764515811476,3.87,137.97,137.94,2.86397463]
[1764515811855,9.45099378,137.99,137.94,2.20397463]
[1764515812058,0.67,138.01,137.97,2.20397463]
[1764515812278,3.2,138.0,137.97,2.20397463]
[1764515812564,3.2,138.0,137.97,2.86397463]
[1764515812859,3.87,138.0,137.98,7.24742716]
[1764515814156,3.87,138.0,137.97,10.11173223]
[1764515814356,3.2,138.0,137.97,10.11173223]
[1764515814564,0.67,137.99,137.97,10.11173223]
[1764515814766,0.67,137.99,137.97,9.45173223]
[1764515815344,3.87,138.0,137.97,10.11173223]
[1764515815845,0.65,137.99,137.97,10.11173223]
[1764515816264,0.65,137.99,137.97,7.2477576]
[1764515817245,2.85397463,137.99,137.94,2.91397463]
[1764515817762,0.65,137.98,137.94,2.20397463]
[1764515817962,3.2,137.97,137.95,0.71]
[1764515818998,3.85,137.97,137.94,2.91397463]
[1764515819447,3.85,137.97,137.95,7.24900326]
[1764515819845,3.2,137.97,137.95,7.24900326]
[1764515820064,0.65,137.96,137.94,7.24942508]
[1764515820263,0.65,137.96,137.94,7.95942508]
[1764515820572,0.65,137.96,137.94,7.24942508]
[1764515820770,2.85397463,137.96,137.94,7.24942508]
[1764515820980,2.20397463,137.95,137.92,7.25044915]
[1764515821177,3.2,137.94,137.93,2.20397463]
[1764515821482,3.2,137.94,137.93,2.91397463]
[1764515821659,3.2,137.94,137.93,10.164029]
[1764515824387,3.2,137.94,137.93,11.4060679]
[1764515827170,24.20628698,137.99,137.93,29.53120383]
[1764515827372,3.2,137.98,137.97,3.44601353]
[1764515827580,3.85,137.98,137.97,3.44601353]
[1764515828175,3.2,137.98,137.97,3.44601353]
[1764515828378,3.2,137.98,137.97,4.15601353]
[1764515829077,3.2,137.98,137.97,11.40396598]
[1764515829875,3.2,137.98,137.97,10.69396598]
[1764515831386,3.2,137.98,137.97,7.24795245]
[1764515833658,3.2,137.98,137.97,11.40396598]
[1764515833876,0.65,138.01,137.97,74.20396598]
[1764515834085,3.2,138.0,137.98,4.15601353]
[1764515834290,3.2,138.0,137.99,4.15601353]
[1764515835194,3.2,138.0,137.99,0.71]
[1764515835359,3.2,138.0,137.98,4.15601353]
[1764515836065,3.2,138.0,137.99,7.95690194]
[1764515836692,3.2,138.01,137.99,7.95690194]
[1764515838997,3.2,138.01,137.99,10.69291547]
[1764515839171,3.2,138.01,137.99,11.40291547]
[1764515840689,3.2,138.01,137.99,7.95690194]
[1764515840874,3.2,138.01,137.99,11.40291547]
[1764515841386,3.2,138.01,138.0,7.95637681]
[1764515842583,3.2,138.01,138.0,7.24637681]
[1764515844488,3.2,138.01,137.99,10.69291547]
[1764515844666,3.2,138.01,137.99,11.34291547]
[1764515845591,0.67,138.0,137.99,7.24690194]
[1764515845889,3.2,138.01,137.99,7.24690194]
[1764515846079,3.87,138.01,137.99,7.24690194]
[1764515846970,16.308864,137.99,137.98,7.24724793]
[1764515847171,16.308864,137.99,137.97,70.04786921]
[1764515847392,16.308864,137.99,137.97,7.24786921]
[1764515847393,16.978864,137.99,137.97,7.24786921]
[1764515848295,3.2,137.98,137.97,7.24786921]
[1764515849057,3.87,137.98,137.95,3.44601353]
[1764515849308,0.67,137.97,137.95,7.24888945]
[1764515850609,3.2,137.98,137.95,7.24888945]
[1764515850776,3.87,137.98,137.95,7.91888945]
[1764515850975,3.87,137.98,137.95,11.36490298]
[1764515851901,0.67,137.97,137.95,10.69490298]
[1764515852910,0.67,137.97,137.94,10.69531122]
[1764515853117,0.67,137.97,137.94,70.04929769]
[1764515853302,0.67,137.97,137.94,73.49531122]
[1764515853686,0.67,137.97,137.94,74.16531122]
[1764515853890,3.2,137.98,137.95,4.11601353]
[1764515854190,3.87,137.98,137.95,4.11601353]
[1764515857317,3.87,137.98,137.95,11.36480368]
[1764515857510,0.67,137.97,137.95,7.24879015]
[1764515858491,3.44601353,137.96,137.91,66.24601353]
[1764515858692,3.2,137.95,137.91,66.91601353]
[1764515858917,3.87,137.95,137.91,66.24601353]
[1764515859212,3.87,137.95,137.92,4.11601353]
[1764515859412,0.67,137.94,137.92,11.36636813]
[1764515859620,0.67,137.94,137.92,10.69636813]
[1764515860009,0.67,137.94,137.92,7.2503546]
[1764515861424,3.2,137.95,137.92,11.36636813]
[1764515861617,3.87,137.95,137.92,11.36636813]
[1764515862699,3.2,137.95,137.93,3.44601353]
[1764515863022,45.33938646,137.97,137.94,3.44601353]
[1764515863023,3.2,137.97,137.94,3.44601353]
[1764515863206,3.2,137.97,137.96,3.44601353]
[1764515863697,3.2,137.97,137.96,4.11601353]
[1764515865213,3.2,137.97,137.95,10.69463107]
[1764515865413,3.2,137.97,137.95,11.36463107]
[1764515865729,3.2,137.97,137.95,7.91861754]
[1764515866227,3.87,137.97,137.94,7.24952878]
[1764515866429,3.87,137.97,137.94,7.91952878]
[1764515869207,0.67,137.96,137.94,7.91952878]
[1764515869406,3.2,137.97,137.94,7.91952878]
[1764515869407,3.87,137.97,137.94,7.91952878]
[1764515872210,3.87,137.97,137.94,11.36554231]
[1764515872946,3.87,137.97,137.94,7.91952878]
[1764515874219,3.87,137.97,137.94,11.36554231]
[1764515874433,3.44601353,137.95,137.9,10.69764514]
[1764515874733,6.64601353,137.94,137.9,10.69764514]
[1764515874938,6.64601353,137.94,137.9,7.25163161]
[1764515875112,4.11601353,137.93,137.88,3.44601353]
[1764515875318,4.11601353,137.93,137.87,4.11601353]
[1764515875520,4.13601353,137.92,137.87,4.11601353]
[1764515875851,6.64601353,137.91,137.87,0.67]
[1764515876147,7.33601353,137.91,137.87,0.67]
[1764515876348,0.69,137.9,137.87,7.92304152]
[1764515879921,6.64601353,137.91,137.88,7.97243158]
[1764515880133,7.33601353,137.91,137.88,7.97243158]
[1764515880335,0.69,137.9,137.88,7.97243158]
[1764515880537,3.89,137.91,137.88,7.97243158]
[1764515881835,6.64601353,137.91,137.87,7.25320954]
[1764515882033,4.13601353,137.9,137.86,0.72]
[1764515882539,0.69,137.89,137.86,0.72]
[1764515882756,3.2,137.88,137.86,0.72]
[1764515883159,3.2,137.88,137.86,7.97366888]
[1764515883530,3.2,137.88,137.86,11.41968241]
[1764515883740,3.2,137.88,137.87,0.72]
[1764515884651,3.2,137.88,137.87,7.97320954]
[1764515885554,3.89,137.88,137.86,7.25372219]
[1764515886145,3.2,137.88,137.86,7.25372219]
[1764515886347,3.2,137.88,137.86,7.97372219]
[1764515887454,3.2,137.88,137.85,26.10923207]
[1764515887660,3.2,137.88,137.86,0.72]
[1764515889364,3.89,137.88,137.85,7.25426187]
[1764515889662,0.69,137.87,137.85,7.25426187]
[1764515890162,3.2,137.88,137.85,7.25426187]
[1764515890163,3.89,137.88,137.85,7.97426187]
[1764515893856,16.308864,137.9,137.86,2.92836759]
[1764515894171,3.2,137.89,137.86,2.92836759]
[1764515894366,3.9,137.89,137.86,2.92836759]
[1764515895566,3.9,137.89,137.87,7.25320954]
[1764515896175,3.2,137.89,137.88,0.67]
[1764515896371,0.7,137.91,137.88,0.67]
[1764515896569,0.7,137.93,137.89,2.20836759]
[1764515896877,3.2,137.91,137.9,2.20836759]
[1764515897262,3.2,137.91,137.9,2.87836759]